[Event "Late-Titled-Tuesday-Blitz-February-06-2024"]
[Site "Chess.com"]
[Date "2024.02.06"]
[Round "6"]
[White "rcmz"]
[Black "BelaKis"]
[Result "1-0"]
[WhiteElo "2140"]
[BlackElo "2217"]
[TimeControl "180+1"]
[EndTime "15:07:27 PST"]
[Termination "rcmz won on time"]

1. b4 {[%clk 0:03:00.9]} 1... d6 {[%clk 0:02:57.2]} 2. Bb2 {[%clk 0:03:00.7]}
2... Nd7 {[%clk 0:02:57.6]} 3. e3 {[%clk 0:03:00]} 3... Ngf6 {[%clk 0:02:57.7]}
4. f4 {[%clk 0:02:59.7]} 4... g6 {[%clk 0:02:57.8]} 5. Nf3 {[%clk 0:02:59.6]}
5... Bg7 {[%clk 0:02:58.3]} 6. Be2 {[%clk 0:02:59.7]} 6... O-O {[%clk
0:02:58.9]} 7. O-O {[%clk 0:02:59.7]} 7... a6 {[%clk 0:02:56.5]} 8. c4 {[%clk
0:02:59]} 8... c5 {[%clk 0:02:56.4]} 9. b5 {[%clk 0:02:58.4]} 9... axb5 {[%clk
0:02:33.5]} 10. cxb5 {[%clk 0:02:57.3]} 10... b6 {[%clk 0:02:33.9]} 11. Qc2
{[%clk 0:02:52.7]} 11... Bb7 {[%clk 0:02:34]} 12. Nc3 {[%clk 0:02:51.9]} 12...
Qc7 {[%clk 0:02:26.4]} 13. a4 {[%clk 0:02:50.3]} 13... d5 {[%clk 0:02:24.6]} 14.
Rac1 {[%clk 0:02:45.3]} 14... Rfe8 {[%clk 0:02:18.8]} 15. d4 {[%clk 0:02:35]}
15... cxd4 {[%clk 0:01:49.5]} 16. exd4 {[%clk 0:02:33]} 16... Qxf4 {[%clk
0:01:46.1]} 17. Qd3 {[%clk 0:01:58.6]} 17... Qd6 {[%clk 0:01:17.9]} 18. Bd1
{[%clk 0:01:47.6]} 18... e5 {[%clk 0:01:06.1]} 19. dxe5 {[%clk 0:01:40.2]} 19...
Nxe5 {[%clk 0:01:06.3]} 20. Nxe5 {[%clk 0:01:35.6]} 20... Qxe5 {[%clk
0:01:06.5]} 21. Bf3 {[%clk 0:01:32.7]} 21... Qe3+ {[%clk 0:00:55.9]} 22. Qxe3
{[%clk 0:01:26.2]} 22... Rxe3 {[%clk 0:00:56.8]} 23. Nd1 {[%clk 0:01:19.7]}
23... Re7 {[%clk 0:00:32.6]} 24. Ra1 {[%clk 0:01:06.9]} 24... Ne4 {[%clk
0:00:26.6]} 25. Bxg7 {[%clk 0:01:04.5]} 25... Kxg7 {[%clk 0:00:27.5]} 26. Bxe4
{[%clk 0:00:57.4]} 26... Rxe4 {[%clk 0:00:23.1]} 27. Rc1 {[%clk 0:00:54.3]}
27... Re7 {[%clk 0:00:20.1]} 28. Rf4 {[%clk 0:00:52.2]} 28... g5 {[%clk
0:00:18.5]} 29. Rd4 {[%clk 0:00:49.7]} 29... Re4 {[%clk 0:00:17.4]} 30. Rxe4
{[%clk 0:00:43.3]} 30... dxe4 {[%clk 0:00:17.6]} 31. Rc7 {[%clk 0:00:42.9]}
31... Bd5 {[%clk 0:00:18]} 32. Ne3 {[%clk 0:00:41.1]} 32... Be6 {[%clk
0:00:17.6]} 33. Rc6 {[%clk 0:00:39.1]} 33... Rxa4 {[%clk 0:00:17.6]} 34. Rxb6
{[%clk 0:00:38.9]} 34... Ra1+ {[%clk 0:00:17.3]} 35. Kf2 {[%clk 0:00:38.1]}
35... Ra2+ {[%clk 0:00:17.9]} 36. Kg3 {[%clk 0:00:37.8]} 36... h5 {[%clk
0:00:18.4]} 37. h3 {[%clk 0:00:35.6]} 37... Ra3 {[%clk 0:00:18.8]} 38. Kf2
{[%clk 0:00:34.7]} 38... h4 {[%clk 0:00:19.3]} 39. Rb8 {[%clk 0:00:30.9]} 39...
Ra2+ {[%clk 0:00:19.5]} 40. Ke1 {[%clk 0:00:29.3]} 40... f5 {[%clk 0:00:19.1]}
41. Rb7+ {[%clk 0:00:28.1]} 41... Kf6 {[%clk 0:00:19.1]} 42. Rb6 {[%clk
0:00:27.5]} 42... Ke5 {[%clk 0:00:19.4]} 43. Nd1 {[%clk 0:00:23.8]} 43... f4
{[%clk 0:00:19.3]} 44. Nf2 {[%clk 0:00:21.5]} 44... e3 {[%clk 0:00:18.6]} 45.
Nd3+ {[%clk 0:00:20.4]} 45... Kd4 {[%clk 0:00:19.1]} 46. Rd6+ {[%clk 0:00:20.2]}
46... Kc3 {[%clk 0:00:19.5]} 47. Nc5 {[%clk 0:00:17.6]} 47... Bc4 {[%clk
0:00:19.1]} 48. Ne4+ {[%clk 0:00:13.7]} 48... Kb4 {[%clk 0:00:19]} 49. b6 {[%clk
0:00:13.1]} 49... Ra1+ {[%clk 0:00:19.1]} 50. Rd1 {[%clk 0:00:11.5]} 50... Ra2
{[%clk 0:00:19.3]} 51. Rb1+ {[%clk 0:00:09.7]} 51... Ka3 {[%clk 0:00:19]} 52. b7
{[%clk 0:00:09.5]} 52... Re2+ {[%clk 0:00:19.2]} 53. Kd1 {[%clk 0:00:08.9]}
53... Rb2 {[%clk 0:00:19.7]} 54. Rxb2 {[%clk 0:00:08.1]} 54... Kxb2 {[%clk
0:00:18.2]} 55. b8=Q+ {[%clk 0:00:08.8]} 55... Ka3 {[%clk 0:00:19.1]} 56. Qd6+
{[%clk 0:00:08.1]} 56... Kb3 {[%clk 0:00:18.1]} 57. Qb6+ {[%clk 0:00:08.2]}
57... Ka4 {[%clk 0:00:17.9]} 58. Qc5 {[%clk 0:00:07.6]} 58... Bb5 {[%clk
0:00:18.2]} 59. Ke1 {[%clk 0:00:07.2]} 59... Bd3 {[%clk 0:00:16.5]} 60. Nxg5
{[%clk 0:00:07.6]} 60... f3 {[%clk 0:00:16.3]} 61. Nxf3 {[%clk 0:00:07.2]} 61...
Kb3 {[%clk 0:00:16.8]} 62. Qxe3 {[%clk 0:00:07.1]} 1-0

[Event "Late-Titled-Tuesday-Blitz-February-06-2024"]
[Site "Chess.com"]
[Date "2024.02.06"]
[Round "6"]
[White "LikeWater"]
[Black "nindjaxx8"]
[Result "1-0"]
[WhiteElo "2783"]
[BlackElo "2567"]
[TimeControl "180+1"]
[EndTime "15:07:29 PST"]
[Termination "LikeWater won on time"]

1. e4 {[%clk 0:02:59.7]} 1... e6 {[%clk 0:03:00.4]} 2. d4 {[%clk 0:02:57.6]}
2... d5 {[%clk 0:03:01.3]} 3. exd5 {[%clk 0:02:58.1]} 3... exd5 {[%clk
0:03:01.5]} 4. Nf3 {[%clk 0:02:58.5]} 4... Nf6 {[%clk 0:03:01.4]} 5. h3 {[%clk
0:02:59.1]} 5... Bd6 {[%clk 0:03:02]} 6. c4 {[%clk 0:02:58.6]} 6... O-O {[%clk
0:03:01]} 7. c5 {[%clk 0:02:58.6]} 7... Be7 {[%clk 0:03:01.2]} 8. Bd3 {[%clk
0:02:58.1]} 8... b6 {[%clk 0:03:00.4]} 9. Be3 {[%clk 0:02:57.5]} 9... bxc5
{[%clk 0:02:57.2]} 10. dxc5 {[%clk 0:02:58.4]} 10... c6 {[%clk 0:02:57.7]} 11.
Qc2 {[%clk 0:02:54.9]} 11... Ba6 {[%clk 0:02:55.5]} 12. O-O {[%clk 0:02:51.8]}
12... Bxd3 {[%clk 0:02:54.1]} 13. Qxd3 {[%clk 0:02:52.7]} 13... Nbd7 {[%clk
0:02:54.7]} 14. Rc1 {[%clk 0:02:51.8]} 14... Qc7 {[%clk 0:02:51]} 15. Nbd2
{[%clk 0:02:47]} 15... Rfe8 {[%clk 0:02:47.9]} 16. b4 {[%clk 0:02:32.7]} 16...
a6 {[%clk 0:02:43.5]} 17. a4 {[%clk 0:02:30.2]} 17... Bf8 {[%clk 0:02:34.1]} 18.
Rab1 {[%clk 0:02:29.2]} 18... Ne4 {[%clk 0:02:28.4]} 19. Nb3 {[%clk 0:02:26.9]}
19... g6 {[%clk 0:01:55]} 20. Bd4 {[%clk 0:01:52.3]} 20... Bg7 {[%clk
0:01:50.8]} 21. Bxg7 {[%clk 0:01:48.9]} 21... Kxg7 {[%clk 0:01:48.4]} 22. Na5
{[%clk 0:01:48.3]} 22... Kg8 {[%clk 0:01:30.7]} 23. Qd4 {[%clk 0:01:46.1]} 23...
Re6 {[%clk 0:01:25.9]} 24. Qa1 {[%clk 0:01:36.4]} 24... Ndxc5 {[%clk 0:01:18]}
25. Nd4 {[%clk 0:01:35.4]} 25... Rf6 {[%clk 0:01:13.1]} 26. f3 {[%clk
0:01:15.5]} 26... Nd3 {[%clk 0:00:45.1]} 27. fxe4 {[%clk 0:01:01.2]} 27... Qg3
{[%clk 0:00:25.8]} 28. Nf5 {[%clk 0:00:50.4]} 28... Qf2+ {[%clk 0:00:16.6]} 29.
Kh1 {[%clk 0:00:45.6]} 29... Rxf5 {[%clk 0:00:05.8]} 30. exf5 {[%clk 0:00:45.5]}
30... Qxf5 {[%clk 0:00:03.3]} 31. Nxc6 {[%clk 0:00:41]} 31... Re8 {[%clk
0:00:03.3]} 32. Ne7+ {[%clk 0:00:33.1]} 32... Rxe7 {[%clk 0:00:03.4]} 33. Rf1
{[%clk 0:00:30.7]} 33... Qe4 {[%clk 0:00:02.6]} 34. Qc3 {[%clk 0:00:25.8]} 34...
h5 {[%clk 0:00:02.6]} 35. Rbd1 {[%clk 0:00:21.4]} 35... Ne5 {[%clk 0:00:02]} 36.
Qc8+ {[%clk 0:00:18.6]} 36... Kg7 {[%clk 0:00:02.1]} 37. Qxa6 {[%clk 0:00:19.2]}
37... Nc4 {[%clk 0:00:02.5]} 38. Qf6+ {[%clk 0:00:17.7]} 38... Kh7 {[%clk
0:00:02.4]} 39. Rde1 {[%clk 0:00:12.1]} 39... Ne3 {[%clk 0:00:02.7]} 40. Rf2
{[%clk 0:00:08.5]} 40... d4 {[%clk 0:00:02.8]} 41. Rfe2 {[%clk 0:00:06.9]} 41...
Rc7 {[%clk 0:00:03.1]} 42. Qf3 {[%clk 0:00:06.1]} 42... Qe6 {[%clk 0:00:02.9]}
43. Qf4 {[%clk 0:00:06.1]} 43... Rd7 {[%clk 0:00:03]} 44. b5 {[%clk 0:00:06]}
44... Qc4 {[%clk 0:00:03.2]} 45. b6 {[%clk 0:00:06.2]} 45... Qxa4 {[%clk
0:00:03.5]} 46. Qf3 {[%clk 0:00:05]} 46... Qb5 {[%clk 0:00:03.5]} 47. b7 {[%clk
0:00:04.1]} 47... Rxb7 {[%clk 0:00:03]} 48. Rd2 {[%clk 0:00:04.5]} 48... Rd7
{[%clk 0:00:03.1]} 49. Qe2 {[%clk 0:00:03.8]} 49... Qb7 {[%clk 0:00:02.3]} 50.
Qf2 {[%clk 0:00:03.1]} 50... Re7 {[%clk 0:00:02.3]} 51. Rxd4 {[%clk 0:00:02.8]}
1-0

[Event "Late-Titled-Tuesday-Blitz-February-06-2024"]
[Site "Chess.com"]
[Date "2024.02.06"]
[Round "6"]
[White "Cambek64"]
[Black "Chessdude1987"]
[Result "1-0"]
[WhiteElo "2497"]
[BlackElo "2299"]
[TimeControl "180+1"]
[EndTime "15:07:30 PST"]
[Termination "Cambek64 won by resignation"]

1. e4 {[%clk 0:02:58.7]} 1... e6 {[%clk 0:03:00]} 2. d4 {[%clk 0:02:59]} 2... d5
{[%clk 0:03:00.2]} 3. Nc3 {[%clk 0:02:59.5]} 3... Nf6 {[%clk 0:03:00.5]} 4. e5
{[%clk 0:03:00]} 4... Nfd7 {[%clk 0:03:00.7]} 5. f4 {[%clk 0:03:00.4]} 5... c5
{[%clk 0:03:01.3]} 6. Nf3 {[%clk 0:03:00.7]} 6... Nc6 {[%clk 0:03:01.8]} 7. Be3
{[%clk 0:03:00.7]} 7... a6 {[%clk 0:03:01.7]} 8. Qd2 {[%clk 0:03:00.5]} 8... Qb6
{[%clk 0:03:01.9]} 9. Na4 {[%clk 0:02:59.4]} 9... Qb4 {[%clk 0:03:00.4]} 10.
Qxb4 {[%clk 0:02:55.8]} 10... Nxb4 {[%clk 0:03:00.2]} 11. Kd2 {[%clk 0:02:53.4]}
11... b6 {[%clk 0:03:00.3]} 12. a3 {[%clk 0:02:32.2]} 12... Nc6 {[%clk 0:03:00]}
13. Nc3 {[%clk 0:02:23.2]} 13... Be7 {[%clk 0:02:48.4]} 14. h4 {[%clk
0:02:18.3]} 14... f6 {[%clk 0:02:45.7]} 15. exf6 {[%clk 0:02:08.2]} 15... Nxf6
{[%clk 0:02:44.7]} 16. Bd3 {[%clk 0:01:57.5]} 16... cxd4 {[%clk 0:02:32.5]} 17.
Nxd4 {[%clk 0:01:56.3]} 17... Nxd4 {[%clk 0:02:32.8]} 18. Bxd4 {[%clk
0:01:56.7]} 18... Bc5 {[%clk 0:02:29.7]} 19. Ne2 {[%clk 0:01:55.6]} 19... O-O
{[%clk 0:02:17.1]} 20. c3 {[%clk 0:01:44.5]} 20... Bb7 {[%clk 0:01:54.8]} 21. b4
{[%clk 0:01:41.6]} 21... Bxd4 {[%clk 0:01:53.7]} 22. cxd4 {[%clk 0:01:41.8]}
22... Ng4 {[%clk 0:01:28.8]} 23. g3 {[%clk 0:01:37.4]} 23... Rf7 {[%clk
0:01:22.7]} 24. Rac1 {[%clk 0:01:34.8]} 24... Raf8 {[%clk 0:01:22.5]} 25. Rc3
{[%clk 0:01:32.3]} 25... h6 {[%clk 0:01:17]} 26. h5 {[%clk 0:01:23.3]} 26... Nf2
{[%clk 0:01:15.3]} 27. Rhc1 {[%clk 0:01:21.3]} 27... Ne4+ {[%clk 0:01:12]} 28.
Bxe4 {[%clk 0:01:19.5]} 28... dxe4 {[%clk 0:01:12.9]} 29. Ke3 {[%clk 0:01:18.5]}
29... Rd7 {[%clk 0:01:06.6]} 30. Rc7 {[%clk 0:01:17.8]} 30... Rfd8 {[%clk
0:01:06.5]} 31. Rxd7 {[%clk 0:01:17]} 31... Rxd7 {[%clk 0:01:06.7]} 32. g4
{[%clk 0:01:16.2]} 32... Kf7 {[%clk 0:00:58.5]} 33. Ng3 {[%clk 0:01:16.7]} 33...
a5 {[%clk 0:00:48.8]} 34. b5 {[%clk 0:01:14.8]} 34... a4 {[%clk 0:00:48.6]} 35.
Nxe4 {[%clk 0:01:13.2]} 35... Bd5 {[%clk 0:00:47.5]} 36. Rc8 {[%clk 0:01:10]}
36... Ke7 {[%clk 0:00:37.2]} 37. Nc3 {[%clk 0:00:38.7]} 37... Bb3 {[%clk
0:00:36.4]} 38. Ke4 {[%clk 0:00:37.8]} 38... Bd5+ {[%clk 0:00:30.6]} 39. Ke5
{[%clk 0:00:35.6]} 39... Bf3 {[%clk 0:00:30.2]} 40. g5 {[%clk 0:00:32.5]} 40...
hxg5 {[%clk 0:00:26.2]} 41. fxg5 {[%clk 0:00:31.6]} 41... Bxh5 {[%clk
0:00:26.3]} 42. d5 {[%clk 0:00:31.3]} 42... Bg4 {[%clk 0:00:18.5]} 43. Rc6
{[%clk 0:00:24.7]} 43... exd5 {[%clk 0:00:16.1]} 44. Nxd5+ {[%clk 0:00:24.2]}
44... Kf7 {[%clk 0:00:15.5]} 45. g6+ {[%clk 0:00:24.7]} 45... Ke8 {[%clk
0:00:14.7]} 46. Rc8+ {[%clk 0:00:23.6]} 46... Rd8 {[%clk 0:00:14.9]} 47. Rxd8+
{[%clk 0:00:21.8]} 47... Kxd8 {[%clk 0:00:15.2]} 48. Nxb6 {[%clk 0:00:22.4]}
48... Kc7 {[%clk 0:00:12.5]} 49. Nxa4 {[%clk 0:00:21.3]} 49... Bh5 {[%clk
0:00:12.1]} 50. Kf5 {[%clk 0:00:20.7]} 50... Kb7 {[%clk 0:00:11.5]} 51. Nc3
{[%clk 0:00:20.6]} 51... Kb6 {[%clk 0:00:11.4]} 52. a4 {[%clk 0:00:20.7]} 52...
Be2 {[%clk 0:00:08.7]} 53. Ne4 {[%clk 0:00:20.9]} 53... Bd3 {[%clk 0:00:07.8]}
54. Ke5 {[%clk 0:00:19.7]} 54... Ka5 {[%clk 0:00:07.8]} 55. Nd6 {[%clk 0:00:19]}
55... Kxa4 {[%clk 0:00:07.2]} 56. b6 {[%clk 0:00:19]} 56... Ba6 {[%clk
0:00:04.7]} 57. Ke6 {[%clk 0:00:19.5]} 57... Ka5 {[%clk 0:00:03]} 58. b7 {[%clk
0:00:19.8]} 58... Bxb7 {[%clk 0:00:03.2]} 59. Nxb7+ {[%clk 0:00:20]} 59... Kb6
{[%clk 0:00:04.1]} 60. Kf7 {[%clk 0:00:20]} 60... Kc6 {[%clk 0:00:05]} 61. Kxg7
{[%clk 0:00:20.5]} 61... Kd5 {[%clk 0:00:05.9]} 62. Kf7 {[%clk 0:00:21.1]} 62...
Ke5 {[%clk 0:00:06.8]} 63. g7 {[%clk 0:00:21.5]} 63... Kf5 {[%clk 0:00:07.7]}
64. g8=Q {[%clk 0:00:21.5]} 64... Ke5 {[%clk 0:00:08.6]} 65. Qg6 {[%clk
0:00:21.7]} 65... Kd4 {[%clk 0:00:09.5]} 1-0

[Event "Late-Titled-Tuesday-Blitz-February-06-2024"]
[Site "Chess.com"]
[Date "2024.02.06"]
[Round "6"]
[White "Arystanner"]
[Black "HansOnTwitch"]
[Result "1/2-1/2"]
[WhiteElo "2864"]
[BlackElo "3147"]
[TimeControl "180+1"]
[EndTime "15:07:31 PST"]
[Termination "Game drawn - insufficient material"]

1. e4 {[%clk 0:03:00.9]} 1... c5 {[%clk 0:02:59]} 2. Nf3 {[%clk 0:03:01.4]} 2...
d6 {[%clk 0:02:59.7]} 3. Bb5+ {[%clk 0:03:01.8]} 3... Nd7 {[%clk 0:02:59.7]} 4.
a4 {[%clk 0:03:00.7]} 4... Nf6 {[%clk 0:02:58.8]} 5. Nc3 {[%clk 0:03:00.6]} 5...
a6 {[%clk 0:02:59.2]} 6. Be2 {[%clk 0:03:01]} 6... e6 {[%clk 0:02:59.9]} 7. O-O
{[%clk 0:03:01.2]} 7... b6 {[%clk 0:02:57]} 8. d4 {[%clk 0:02:59.9]} 8... cxd4
{[%clk 0:02:57.5]} 9. Qxd4 {[%clk 0:03:00.3]} 9... Bb7 {[%clk 0:02:56.9]} 10.
Rd1 {[%clk 0:03:00.1]} 10... Qc7 {[%clk 0:02:56.3]} 11. Nd2 {[%clk 0:02:53.9]}
11... d5 {[%clk 0:02:41.3]} 12. exd5 {[%clk 0:02:51.1]} 12... Nxd5 {[%clk
0:02:42.2]} 13. Nxd5 {[%clk 0:02:46.2]} 13... Bxd5 {[%clk 0:02:43.1]} 14. c4
{[%clk 0:02:39.1]} 14... Bc6 {[%clk 0:02:36.2]} 15. Nf3 {[%clk 0:02:38.8]} 15...
e5 {[%clk 0:02:28.7]} 16. Qh4 {[%clk 0:02:21.8]} 16... Be7 {[%clk 0:02:22.5]}
17. Qg3 {[%clk 0:02:21]} 17... O-O-O {[%clk 0:02:22.7]} 18. Be3 {[%clk
0:02:05.9]} 18... g5 {[%clk 0:02:11.6]} 19. c5 {[%clk 0:02:01.6]} 19... bxc5
{[%clk 0:02:04.9]} 20. Bxa6+ {[%clk 0:02:01.1]} 20... Kb8 {[%clk 0:02:05.3]} 21.
Qg4 {[%clk 0:01:40.9]} 21... h5 {[%clk 0:02:01.2]} 22. Qc4 {[%clk 0:01:35.9]}
22... g4 {[%clk 0:02:01.3]} 23. Ng5 {[%clk 0:01:33.4]} 23... Nb6 {[%clk
0:01:23.4]} 24. Qxf7 {[%clk 0:01:26.5]} 24... Bxg5 {[%clk 0:01:22.3]} 25. Qxc7+
{[%clk 0:01:23.8]} 25... Kxc7 {[%clk 0:01:23.2]} 26. Bxg5 {[%clk 0:01:24.5]}
26... Rxd1+ {[%clk 0:01:22.9]} 27. Rxd1 {[%clk 0:01:25.4]} 27... Nxa4 {[%clk
0:01:23.5]} 28. b3 {[%clk 0:01:11.1]} 28... Nc3 {[%clk 0:01:22.8]} 29. Rc1
{[%clk 0:01:01.1]} 29... Ne4 {[%clk 0:01:23]} 30. Be3 {[%clk 0:01:01.5]} 30...
Rd8 {[%clk 0:01:22.3]} 31. Be2 {[%clk 0:00:57]} 31... Rb8 {[%clk 0:01:09.8]} 32.
Bc4 {[%clk 0:00:53.6]} 32... h4 {[%clk 0:00:54.6]} 33. f3 {[%clk 0:00:53]} 33...
gxf3 {[%clk 0:00:51.9]} 34. gxf3 {[%clk 0:00:53.9]} 34... Nd6 {[%clk 0:00:50.1]}
35. Bxc5 {[%clk 0:00:48.3]} 35... Nxc4 {[%clk 0:00:44.9]} 36. Rxc4 {[%clk
0:00:49]} 36... Rxb3 {[%clk 0:00:41.7]} 37. Rxh4 {[%clk 0:00:46.7]} 37... Bxf3
{[%clk 0:00:41.1]} 38. Kf2 {[%clk 0:00:44.5]} 38... Kc6 {[%clk 0:00:37.9]} 39.
Be3 {[%clk 0:00:42.9]} 39... Bd5 {[%clk 0:00:37.6]} 40. Rh8 {[%clk 0:00:41.2]}
40... Rb2+ {[%clk 0:00:37.2]} 41. Ke1 {[%clk 0:00:37.8]} 41... Bf3 {[%clk
0:00:34.6]} 42. Bd2 {[%clk 0:00:37.6]} 42... Kd5 {[%clk 0:00:31.9]} 43. h4
{[%clk 0:00:32.8]} 43... Ke4 {[%clk 0:00:27]} 44. h5 {[%clk 0:00:29.7]} 44...
Rb1+ {[%clk 0:00:27.5]} 45. Kf2 {[%clk 0:00:29.9]} 45... Rh1 {[%clk 0:00:26.7]}
46. h6 {[%clk 0:00:20.9]} 46... Rh2+ {[%clk 0:00:26.6]} 47. Ke1 {[%clk
0:00:21.6]} 47... Rh1+ {[%clk 0:00:13.9]} 48. Kf2 {[%clk 0:00:21.8]} 48... Rh2+
{[%clk 0:00:14.4]} 49. Ke1 {[%clk 0:00:22.5]} 49... Bg4 {[%clk 0:00:13.6]} 50.
h7 {[%clk 0:00:21.4]} 50... Bf5 {[%clk 0:00:13.6]} 51. Bc3 {[%clk 0:00:20.4]}
51... Ke3 {[%clk 0:00:08.5]} 52. Bd2+ {[%clk 0:00:15.8]} 52... Rxd2 {[%clk
0:00:08.1]} 53. Re8 {[%clk 0:00:16.5]} 53... Re2+ {[%clk 0:00:03.9]} 54. Kd1
{[%clk 0:00:14.2]} 54... Rd2+ {[%clk 0:00:02.7]} 55. Ke1 {[%clk 0:00:14.4]}
55... Re2+ {[%clk 0:00:02]} 56. Kd1 {[%clk 0:00:15]} 56... Rh2 {[%clk
0:00:02.4]} 57. h8=Q {[%clk 0:00:13.9]} 57... Rxh8 {[%clk 0:00:03.1]} 58. Rxh8
{[%clk 0:00:14.6]} 58... e4 {[%clk 0:00:02.9]} 59. Ke1 {[%clk 0:00:15.2]} 59...
Kf4 {[%clk 0:00:03.1]} 60. Rh4+ {[%clk 0:00:15.5]} 60... Bg4 {[%clk 0:00:03.5]}
61. Kf2 {[%clk 0:00:15.4]} 61... e3+ {[%clk 0:00:04]} 62. Ke1 {[%clk 0:00:16.1]}
62... Kg3 {[%clk 0:00:04.7]} 63. Rh8 {[%clk 0:00:16.5]} 63... Bf3 {[%clk
0:00:04.7]} 64. Rf8 {[%clk 0:00:17.4]} 64... Kg4 {[%clk 0:00:04.9]} 65. Rf6
{[%clk 0:00:17.4]} 65... Kg3 {[%clk 0:00:05.4]} 66. Re6 {[%clk 0:00:17.4]} 66...
Kf4 {[%clk 0:00:06]} 67. Re7 {[%clk 0:00:17.7]} 67... Bg4 {[%clk 0:00:05.9]} 68.
Rxe3 {[%clk 0:00:18]} 68... Kxe3 {[%clk 0:00:06.2]} 1/2-1/2

[Event "Late-Titled-Tuesday-Blitz-February-06-2024"]
[Site "Chess.com"]
[Date "2024.02.06"]
[Round "6"]
[White "gahryman"]
[Black "winniethepooh04"]
[Result "1/2-1/2"]
[WhiteElo "2673"]
[BlackElo "2525"]
[TimeControl "180+1"]
[EndTime "15:07:31 PST"]
[Termination "Game drawn by repetition"]

1. e4 {[%clk 0:03:00.9]} 1... e6 {[%clk 0:03:00.4]} 2. d4 {[%clk 0:03:00.4]}
2... d5 {[%clk 0:03:01]} 3. e5 {[%clk 0:03:00.8]} 3... c5 {[%clk 0:03:00.9]} 4.
Nf3 {[%clk 0:03:01.5]} 4... Nc6 {[%clk 0:03:01.6]} 5. Bd3 {[%clk 0:03:01.5]}
5... Bd7 {[%clk 0:03:00.6]} 6. O-O {[%clk 0:03:00.8]} 6... Nge7 {[%clk
0:03:01.1]} 7. dxc5 {[%clk 0:02:41]} 7... Ng6 {[%clk 0:02:59.8]} 8. Bxg6 {[%clk
0:02:26.3]} 8... hxg6 {[%clk 0:02:59.5]} 9. Nbd2 {[%clk 0:02:17.7]} 9... Bxc5
{[%clk 0:02:58.6]} 10. Nb3 {[%clk 0:02:17.7]} 10... Be7 {[%clk 0:02:50.7]} 11.
h3 {[%clk 0:02:03.9]} 11... O-O {[%clk 0:02:46.2]} 12. Bf4 {[%clk 0:02:00.4]}
12... Rc8 {[%clk 0:02:46]} 13. Qd2 {[%clk 0:01:58.3]} 13... Nb4 {[%clk
0:02:32.8]} 14. c3 {[%clk 0:01:54.5]} 14... Na6 {[%clk 0:02:32.9]} 15. Bg5
{[%clk 0:01:50.9]} 15... Nc5 {[%clk 0:02:32.9]} 16. Nxc5 {[%clk 0:01:49.7]}
16... Rxc5 {[%clk 0:02:32.4]} 17. Bxe7 {[%clk 0:01:47.1]} 17... Qxe7 {[%clk
0:02:33.3]} 18. Nd4 {[%clk 0:01:47.3]} 18... Rb8 {[%clk 0:02:24.2]} 19. Qe3
{[%clk 0:01:32.8]} 19... Rc4 {[%clk 0:02:17.9]} 20. Rfd1 {[%clk 0:01:08.2]}
20... a5 {[%clk 0:02:17.4]} 21. a3 {[%clk 0:01:02.8]} 21... b5 {[%clk
0:02:13.4]} 22. g3 {[%clk 0:01:03.1]} 22... b4 {[%clk 0:02:12.6]} 23. cxb4
{[%clk 0:01:00.6]} 23... axb4 {[%clk 0:02:12.9]} 24. a4 {[%clk 0:01:00.6]} 24...
b3 {[%clk 0:02:07.3]} 25. a5 {[%clk 0:01:00]} 25... Qb4 {[%clk 0:02:07]} 26. a6
{[%clk 0:00:53.9]} 26... Ra8 {[%clk 0:02:07.5]} 27. Ra3 {[%clk 0:00:49.7]} 27...
Ba4 {[%clk 0:01:59.4]} 28. a7 {[%clk 0:00:39.9]} 28... Qb6 {[%clk 0:01:51.2]}
29. Nf5 {[%clk 0:00:35.9]} 29... Qxe3 {[%clk 0:01:47.8]} 30. Nxe3 {[%clk
0:00:35.9]} 30... Rb4 {[%clk 0:01:47]} 31. Rda1 {[%clk 0:00:32.4]} 31... Rxa7
{[%clk 0:01:47.3]} 32. Nf1 {[%clk 0:00:22.4]} 32... Kf8 {[%clk 0:01:33.5]} 33.
Nd2 {[%clk 0:00:21.9]} 33... Ra8 {[%clk 0:01:08.8]} 34. h4 {[%clk 0:00:20.9]}
34... Ke7 {[%clk 0:01:02.6]} 35. Nb1 {[%clk 0:00:19.2]} 35... d4 {[%clk
0:01:02.4]} 36. Nd2 {[%clk 0:00:19.2]} 36... f6 {[%clk 0:00:58.8]} 37. exf6+
{[%clk 0:00:18.1]} 37... gxf6 {[%clk 0:00:58.3]} 38. f4 {[%clk 0:00:17]} 38...
e5 {[%clk 0:00:58.3]} 39. fxe5 {[%clk 0:00:16.2]} 39... fxe5 {[%clk 0:00:58.6]}
40. Kf2 {[%clk 0:00:17.1]} 40... Ke6 {[%clk 0:00:59.2]} 41. Ke1 {[%clk
0:00:10.8]} 41... Kd5 {[%clk 0:00:59.4]} 42. Nxb3 {[%clk 0:00:08.9]} 42... Rab8
{[%clk 0:00:59]} 43. Rxa4 {[%clk 0:00:06.5]} 43... Rxb3 {[%clk 0:00:59]} 44.
Ra5+ {[%clk 0:00:07]} 44... Ke4 {[%clk 0:00:57.7]} 45. Kf1 {[%clk 0:00:06.3]}
45... Rxb2 {[%clk 0:00:58]} 46. Re1+ {[%clk 0:00:06.9]} 46... Kf3 {[%clk
0:00:56.5]} 47. Ra3+ {[%clk 0:00:06.4]} 47... Kg4 {[%clk 0:00:55]} 48. Re4+
{[%clk 0:00:05]} 48... Kh3 {[%clk 0:00:54.1]} 49. Rxe5 {[%clk 0:00:04.3]} 49...
Rc2 {[%clk 0:00:47.6]} 50. Re2 {[%clk 0:00:03.6]} 50... Rf8+ {[%clk 0:00:39.6]}
51. Ke1 {[%clk 0:00:03.9]} 51... Rxe2+ {[%clk 0:00:37.4]} 52. Kxe2 {[%clk
0:00:04.8]} 52... Re8+ {[%clk 0:00:37.4]} 53. Kf2 {[%clk 0:00:04]} 53... Re3
{[%clk 0:00:36.6]} 54. Ra4 {[%clk 0:00:03.7]} 54... Rxg3 {[%clk 0:00:32.9]} 55.
Rxd4 {[%clk 0:00:04.2]} 55... Rg4 {[%clk 0:00:32]} 56. Rd6 {[%clk 0:00:03]}
56... Kxh4 {[%clk 0:00:31.8]} 57. Rd8 {[%clk 0:00:03]} 57... Ra4 {[%clk
0:00:30.3]} 58. Kg2 {[%clk 0:00:02.8]} 58... g5 {[%clk 0:00:30.3]} 59. Kh2
{[%clk 0:00:02.8]} 59... Ra2+ {[%clk 0:00:29.6]} 60. Kg1 {[%clk 0:00:03.1]}
60... g4 {[%clk 0:00:29.4]} 61. Rd3 {[%clk 0:00:03.6]} 61... Rb2 {[%clk
0:00:28.4]} 62. Rc3 {[%clk 0:00:03.8]} 62... Ra2 {[%clk 0:00:28.8]} 63. Rd3
{[%clk 0:00:04]} 63... Rb2 {[%clk 0:00:29.2]} 64. Rc3 {[%clk 0:00:04.4]} 64...
g3 {[%clk 0:00:29.6]} 65. Rc8 {[%clk 0:00:03]} 65... Kh3 {[%clk 0:00:30]} 66.
Rh8+ {[%clk 0:00:02.6]} 66... Kg4 {[%clk 0:00:30.2]} 67. Rg8+ {[%clk 0:00:03.3]}
67... Kf3 {[%clk 0:00:30.5]} 68. Rf8+ {[%clk 0:00:03.6]} 68... Kg4 {[%clk
0:00:30.7]} 69. Rg8+ {[%clk 0:00:04.1]} 69... Kh3 {[%clk 0:00:31.1]} 70. Rh8+
{[%clk 0:00:04.6]} 70... Kg4 {[%clk 0:00:31.6]} 71. Rg8+ {[%clk 0:00:05]}
1/2-1/2